bitfinex/quotes_BTCUSD_20220218
["timestamp","ask_amount","ask_price","bid_price","bid_amount"]
[1645165939073,0.3992,40653.0,40652.0,0.715]
[1645165939273,0.4992,40653.0,40652.0,0.715]
[1645165939472,0.4492,40653.0,40652.0,0.715]
[1645165939729,0.4492,40653.0,40652.0,0.55240632]
[1645165940525,0.4992,40653.0,40652.0,0.55240632]
[1645165940725,0.510734,40653.0,40652.0,0.55240632]
[1645165940927,0.210734,40653.0,40652.0,0.55240632]
[1645165941327,0.110734,40653.0,40652.0,0.55240632]
[1645165941627,0.110734,40653.0,40652.0,0.55270643]
[1645165942026,0.110734,40653.0,40652.0,0.55240632]
[1645165942230,0.211535,40655.0,40652.0,0.55240632]
[1645165942528,0.161535,40655.0,40652.0,0.55240632]
[1645165942728,0.061535,40655.0,40652.0,0.55240632]
[1645165942929,0.061535,40655.0,40652.0,0.54740632]
[1645165943772,0.071385,40655.0,40652.0,0.54740632]
[1645165944371,0.3148,40656.0,40652.0,0.54740632]
[1645165945070,0.3148,40656.0,40652.0,0.54765494]
[1645165945472,0.6148,40656.0,40652.0,0.54765494]
[1645165946075,0.415,40656.0,40652.0,0.54740632]
[1645165946273,0.41205188,40656.0,40652.0,0.54765494]
[1645165947334,0.41205188,40656.0,40652.0,0.54740632]
[1645165947537,0.41005188,40656.0,40652.0,0.54765494]
[1645165947735,0.46990188,40656.0,40652.0,0.54765494]
[1645165947938,0.06153,40655.0,40652.0,0.54765494]
[1645165948539,0.06153,40655.0,40652.0,0.54740632]
[1645165948938,0.06153,40655.0,40652.0,0.54770643]
[1645165949839,0.06153,40655.0,40652.0,0.54740632]
[1645165950238,0.06353,40655.0,40652.0,0.54770643]
[1645165951072,0.06353,40655.0,40652.0,0.54740632]
[1645165951474,0.06153,40655.0,40652.0,0.54770643]
[1645165951674,0.071381,40655.0,40652.0,0.54770643]
[1645165951874,0.06153,40655.0,40652.0,0.54770643]
[1645165952374,0.06153,40655.0,40652.0,0.54740632]
[1645165952775,0.06153,40655.0,40652.0,0.54770643]
[1645165953575,0.06153,40655.0,40652.0,0.54740632]
[1645165953975,0.06153,40655.0,40652.0,0.54770643]
[1645165954376,0.3,40654.0,40652.0,0.54770643]
[1645165955622,0.30985,40654.0,40652.0,0.54770643]
[1645165955823,0.4,40654.0,40652.0,0.54770643]
[1645165956023,0.4,40654.0,40652.0,0.54740632]
[1645165956223,0.402,40654.0,40652.0,0.54740632]
[1645165956425,0.3,40653.0,40652.0,0.54770643]
[1645165957228,0.102,40654.0,40652.0,0.54740632]
[1645165957429,0.1,40656.0,40652.0,0.54740632]
[1645165957632,0.15,40656.0,40652.0,0.54740632]
[1645165957827,0.12379263,40655.0,40652.0,0.54740632]
[1645165958975,0.07379263,40655.0,40652.0,0.54740632]
[1645165960974,0.07379263,40655.0,40652.0,0.54770643]
[1645165961975,0.07379263,40655.0,40652.0,0.54740632]
[1645165962423,0.07379263,40655.0,40652.0,0.54770643]
[1645165963223,0.07379263,40655.0,40652.0,0.54740632]
[1645165963624,0.07379263,40655.0,40652.0,0.54770643]
[1645165964425,0.07379263,40655.0,40652.0,0.54740632]
[1645165964626,0.13532063,40655.0,40652.0,0.54770643]
[1645165964825,0.13492063,40655.0,40652.0,0.54770643]
[1645165965626,0.13492063,40655.0,40652.0,0.54740632]
[1645165966076,0.13492063,40655.0,40652.0,0.54770643]
[1645165966376,0.13692063,40655.0,40652.0,0.54770643]
[1645165966877,0.48692063,40655.0,40652.0,0.54740632]
[1645165967274,0.28692063,40655.0,40652.0,0.54770643]
[1645165967879,0.28692063,40655.0,40652.0,0.54740632]
[1645165968075,0.28692063,40655.0,40652.0,0.54770643]
[1645165968277,0.18692063,40655.0,40652.0,0.54770643]
[1645165968479,0.24845163,40655.0,40652.0,0.54770643]
[1645165968678,0.24645163,40655.0,40652.0,0.54770643]
[1645165968877,0.19645163,40655.0,40652.0,0.54770643]
[1645165969077,0.19645163,40655.0,40652.0,0.54740632]
[1645165969478,0.56282615,40655.0,40652.0,0.54740632]
[1645165969927,0.66282615,40655.0,40652.0,0.54740632]
[1645165970629,0.36637452,40653.0,40652.0,0.54740632]
[1645165970829,0.46637452,40653.0,40652.0,0.54740632]
[1645165972628,0.1,40653.0,40652.0,0.54740632]
[1645165972828,0.19645163,40655.0,40652.0,0.54740632]
[1645165973230,0.24645163,40655.0,40652.0,0.54740632]
[1645165974075,0.29645163,40655.0,40652.0,0.54770643]
[1645165974276,0.29745163,40655.0,40652.0,0.54770643]
[1645165975075,0.30730163,40655.0,40652.0,0.54740632]
[1645165975275,0.40730163,40655.0,40652.0,0.54770643]
[1645165975577,0.40630163,40655.0,40652.0,0.54770643]
[1645165975774,0.35630163,40655.0,40652.0,0.54770643]
[1645165975976,0.35630163,40655.0,40652.0,0.54270643]
[1645165976378,0.35730163,40655.0,40652.0,0.54240632]
[1645165976577,0.24745163,40655.0,40652.0,0.54270643]
[1645165976777,0.34745163,40655.0,40652.0,0.54270643]
[1645165977734,0.02616843,40654.0,40652.0,0.54240632]
[1645165977934,0.02616843,40654.0,40652.0,0.54270643]
[1645165978333,0.02716843,40654.0,40652.0,0.54270643]
[1645165978533,0.02616843,40653.0,40652.0,0.54270643]
[1645165978735,0.02616843,40653.0,40652.0,0.54240632]
[1645165978933,0.02616843,40653.0,40652.0,0.54270643]
[1645165979635,0.36636434,40653.0,40652.0,0.54270643]
[1645165979835,0.46636434,40653.0,40652.0,0.54270643]
[1645165980035,0.46636434,40653.0,40652.0,0.54240632]
[1645165980435,0.46736434,40653.0,40652.0,0.54240632]
[1645165980837,0.1271682,40653.0,40652.0,0.54240632]
[1645165981275,0.0271682,40653.0,40652.0,0.54240632]
[1645165981475,0.0261682,40653.0,40652.0,0.54240632]
[1645165981873,0.36636041,40653.0,40652.0,0.54240632]
[1645165982276,0.46636041,40653.0,40652.0,0.54240632]
[1645165982475,0.47621141,40653.0,40652.0,0.54240632]
[1645165982675,0.46636041,40653.0,40652.0,0.54240632]
[1645165983675,0.46636041,40653.0,40652.0,0.54270643]
[1645165983875,0.46636041,40653.0,40652.0,0.54240632]
[1645165984276,0.46736041,40653.0,40652.0,0.54240632]
[1645165985532,0.46636041,40653.0,40652.0,0.54240632]
[1645165986333,0.47721141,40653.0,40652.0,0.54240632]
[1645165986533,0.46736041,40653.0,40652.0,0.54240632]
[1645165987535,0.46636041,40653.0,40652.0,0.54240632]
[1645165987736,0.12616852,40653.0,40652.0,0.54240632]
[1645165987934,0.02616852,40653.0,40652.0,0.54240632]
[1645165988335,0.02816852,40653.0,40652.0,0.54240632]
[1645165989580,0.02616852,40653.0,40652.0,0.54240632]
[1645165989780,0.02616852,40653.0,40652.0,0.54270643]
[1645165989980,0.02616852,40653.0,40652.0,0.54240632]
[1645165990181,0.03601952,40653.0,40652.0,0.54240632]
[1645165990480,0.03801952,40653.0,40652.0,0.54240632]
[1645165990682,0.03801952,40653.0,40652.0,0.54270643]
[1645165990881,0.03801952,40653.0,40652.0,0.54240632]
[1645165991681,0.02616852,40653.0,40652.0,0.54240632]
[1645165992532,0.02816852,40653.0,40652.0,0.54240632]
[1645165993736,0.02616852,40653.0,40652.0,0.54240632]
[1645165993932,1.76923874,40655.0,40652.0,0.54240632]
[1645165993933,1.32816852,40654.0,40652.0,0.54240632]
[1645165994133,0.009852,40653.0,40652.0,0.54240632]
[1645165994333,0.03702052,40653.0,40652.0,0.54240632]
[1645165994533,0.02716852,40653.0,40652.0,0.54240632]
[1645165995634,0.02616852,40653.0,40652.0,0.54270643]
[1645165996084,0.02616852,40653.0,40652.0,0.54240632]
[1645165996286,0.02816852,40653.0,40652.0,0.54240632]
[1645165996684,0.02816852,40653.0,40652.0,0.54270643]
[1645165996884,0.19599119,40653.0,40652.0,0.54240632]
[1645165997184,0.02816852,40653.0,40652.0,0.54240632]
[1645165997587,0.02616852,40653.0,40652.0,0.54240632]
[1645165997985,0.03602052,40653.0,40652.0,0.54240632]
[1645165998386,0.02685776,40653.0,40652.0,0.54240632]
[1645165998793,0.07605776,40653.0,40652.0,0.54240632]
[1645165999590,0.07405776,40653.0,40652.0,0.54240632]
[1645166001932,0.08390876,40653.0,40652.0,0.54240632]
[1645166003585,0.07405776,40653.0,40652.0,0.54240632]
[1645166004386,0.07505776,40653.0,40652.0,0.54240632]
[1645166004789,0.24287976,40653.0,40652.0,0.54240632]
[1645166004987,0.24287976,40653.0,40652.0,0.48816569]
[1645166005589,1.54487976,40653.0,40652.0,0.48816569]
[1645166005790,1.54387976,40653.0,40652.0,0.48816569]
[1645166005989,1.65373176,40653.0,40652.0,0.48816569]
[1645166006390,1.64387976,40653.0,40652.0,0.48816569]
[1645166006593,1.64387976,40653.0,40652.0,0.48410861]
[1645166006791,1.64387976,40653.0,40652.0,0.48721846]
[1645166007639,1.64387976,40653.0,40652.0,0.48751857]
[1645166007839,1.619022,40653.0,40652.0,0.48751857]
[1645166008039,1.619022,40653.0,40652.0,0.48721846]
[1645166008441,1.621022,40653.0,40652.0,0.48721846]
[1645166008639,1.621022,40653.0,40652.0,0.44138354]
[1645166009043,2.1235948,40653.0,40652.0,0.15048456]
[1645166009345,2.375099,40652.0,40651.0,6.697e-05]
[1645166009540,2.375099,40652.0,40650.0,0.00023314]
[1645166009541,2.90271274,40652.0,40650.0,0.00023314]
[1645166009741,1.302,40650.0,40645.0,6.697e-05]
[1645166009942,0.061554,40647.0,40644.0,6.697e-05]
[1645166010145,1.6512,40646.0,40643.0,0.00162719]
[1645166010344,0.38634584,40645.0,40643.0,0.00162719]
[1645166010543,1.6512,40644.0,40643.0,0.00162719]
[1645166010743,1.77501226,40644.0,40643.0,0.00162719]
[1645166010996,1.77501226,40644.0,40639.0,0.0021]
[1645166010997,1.302,40642.0,40639.0,0.0021]
[1645166011186,1.302,40640.0,40639.0,0.0021]
[1645166011384,1.4512,40640.0,40639.0,0.0021]
[1645166012383,1.651,40640.0,40639.0,0.0021]
[1645166013785,1.660856,40640.0,40639.0,0.0021]
[1645166014592,1.651,40640.0,40639.0,0.0021]
[1645166016041,0.349,40640.0,40639.0,0.0021]
[1645166016240,0.649,40640.0,40639.0,0.0021]
[1645166016440,1.951,40640.0,40639.0,0.0021]
[1645166016840,2.6892,40640.0,40639.0,0.0021]
[1645166017040,2.6892,40640.0,40639.0,0.00381411]
[1645166017443,3.05501464,40640.0,40639.0,0.0034327]
[1645166017642,2.699056,40640.0,40639.0,0.0034327]
[1645166018042,1.3872,40640.0,40639.0,0.0034327]
[1645166018242,2.6892,40640.0,40639.0,0.0034327]
[1645166018894,2.4894,40640.0,40639.0,0.0034327]
[1645166019092,2.6892,40640.0,40639.0,0.0034327]
[1645166019494,1.3872,40640.0,40639.0,0.0034327]
[1645166019897,1.0872,40640.0,40639.0,0.0034327]
[1645166020094,0.8874,40640.0,40639.0,0.0034327]
[1645166020297,1.0872,40640.0,40639.0,0.0034327]
[1645166020597,0.8874,40640.0,40639.0,0.0034327]
[1645166020796,1.0872,40640.0,40639.0,0.0034327]
[1645166021196,0.9872,40640.0,40639.0,0.0034327]
[1645166021596,0.997054,40640.0,40639.0,0.00171859]
[1645166022235,0.947854,40640.0,40639.0,0.00171859]
[1645166022836,0.748054,40640.0,40639.0,0.00171859]
[1645166024438,0.750054,40640.0,40639.0,0.00171859]
[1645166025440,0.750054,40640.0,40639.0,0.05171859]
[1645166025839,0.748054,40640.0,40639.0,0.05171859]
[1645166026489,0.748054,40640.0,40639.0,0.05271859]
[1645166026787,0.748054,40640.0,40639.0,0.05301441]
[1645166026988,0.18851927,40640.0,40639.0,0.05301441]
[1645166027691,0.18851927,40640.0,40639.0,0.35201441]
[1645166028087,0.18851927,40640.0,40639.0,0.30201441]
[1645166028588,0.18851927,40640.0,40639.0,0.35301441]
[1645166029832,0.18851927,40640.0,40639.0,0.35201441]
[1645166031639,0.17866527,40640.0,40639.0,0.35201441]
[1645166032439,0.17866527,40640.0,40639.0,0.35301441]
[1645166033487,0.17866527,40640.0,40639.0,0.05301441]
[1645166033684,0.1775463,40640.0,40639.0,0.05201441]
[1645166033884,0.1775463,40640.0,40639.0,0.35201441]
[1645166034483,0.1775463,40640.0,40639.0,0.35301441]
[1645166035684,0.1775463,40640.0,40639.0,0.05201441]
[1645166035884,0.1775463,40640.0,40639.0,0.00201441]
[1645166036184,0.1775463,40640.0,40639.0,0.30201441]
[1645166036885,0.1775463,40640.0,40639.0,0.30407134]
[1645166038038,0.1775463,40640.0,40639.0,0.00407134]
[1645166038637,0.1785463,40640.0,40639.0,0.00407134]
[1645166039236,0.1785463,40640.0,40639.0,0.30407134]
[1645166039437,0.1785463,40640.0,40639.0,0.35407134]
[1645166039838,0.1775463,40640.0,40639.0,0.35407134]
[1645166040240,0.009853,40647.0,40639.0,0.35407134]
[1645166040543,0.001,40645.0,40639.0,0.37637134]
[1645166041187,0.001,40645.0,40640.0,0.00023286]
[1645166041387,0.001,40645.0,40640.0,0.00052868]
[1645166041586,0.001,40645.0,40640.0,0.00023286]
[1645166041786,0.46567643,40651.0,40647.0,0.21133374]
[1645166041988,0.1,40651.0,40647.0,0.21133374]
[1645166042388,0.47572831,40652.0,40647.0,0.21133374]
[1645166042588,0.37572831,40652.0,40647.0,0.21133374]
[1645166042789,0.47572831,40652.0,40647.0,0.21133374]
[1645166045032,0.36567643,40651.0,40647.0,0.21133374]
[1645166045232,0.56547643,40651.0,40647.0,0.21133374]
[1645166045434,0.66547643,40651.0,40647.0,0.21133374]
[1645166045839,0.66547643,40651.0,40646.0,0.29051613]
[1645166047337,0.66547643,40651.0,40646.0,0.59051613]
[1645166047537,0.66547643,40651.0,40646.0,0.29051613]
[1645166048341,0.66547643,40651.0,40643.0,0.30029582]
[1645166048590,0.36567643,40649.0,40642.0,0.00029582]
[1645166048787,0.46567643,40649.0,40641.0,0.00972869]
[1645166049488,0.46567643,40649.0,40641.0,0.29302828]
[1645166049787,0.46567643,40649.0,40641.0,0.00971363]
[1645166050588,0.46567643,40649.0,40641.0,0.00949582]
[1645166050589,0.36567643,40648.0,40641.0,0.00949582]
[1645166050789,0.46567643,40648.0,40641.0,0.29801341]
[1645166051789,0.46567643,40648.0,40641.0,0.2977956]
[1645166051990,0.46567643,40648.0,40641.0,0.29801341]
[1645166052636,0.46767643,40648.0,40645.0,0.21379813]
[1645166053237,0.102,40648.0,40645.0,0.21379813]
[1645166053439,0.002,40648.0,40645.0,0.21379813]
[1645166053837,0.46790487,40649.0,40645.0,0.21379813]
[1645166054538,0.46990487,40649.0,40645.0,0.21379813]
[1645166054937,0.46990487,40649.0,40642.0,0.00029582]
[1645166055138,0.46990487,40649.0,40641.0,0.2980159]
[1645166055341,0.46990487,40649.0,40641.0,0.2977956]
[1645166055542,0.10422844,40649.0,40641.0,0.2980159]
[1645166055739,0.46790487,40649.0,40641.0,0.2980159]
[1645166055988,0.36790487,40649.0,40641.0,0.2980159]
[1645166056187,0.46790487,40649.0,40645.0,0.26582559]
[1645166056784,0.47775687,40649.0,40645.0,0.26573892]
[1645166056984,0.46790487,40649.0,40645.0,0.26573892]
[1645166057482,0.10222844,40649.0,40645.0,0.26573892]
[1645166057683,0.07380846,40646.0,40645.0,0.26573892]
[1645166058688,0.07580846,40646.0,40645.0,0.26573892]
[1645166059934,0.07380846,40646.0,40645.0,0.26573892]
[1645166061738,0.0760277,40646.0,40645.0,0.26573892]
[1645166063342,0.0760277,40646.0,40642.0,0.00029582]
[1645166063584,0.0760277,40646.0,40641.0,0.2980156]
[1645166063886,0.0760277,40646.0,40642.0,0.00029582]
[1645166064085,0.0760277,40646.0,40641.0,0.29801559]
[1645166064285,0.0760277,40646.0,40642.0,0.24381435]
[1645166064484,0.0760277,40646.0,40642.0,0.24411017]
[1645166065688,0.0760277,40646.0,40642.0,0.24381435]
[1645166065887,0.0760277,40646.0,40642.0,0.19410864]
[1645166066687,0.0780277,40646.0,40642.0,0.19410864]
[1645166066888,0.07580846,40646.0,40643.0,0.00171479]
[1645166067933,0.07380846,40646.0,40643.0,0.00171479]
[1645166069738,0.43948489,40646.0,40643.0,0.00171479]
[1645166070139,0.43798489,40646.0,40643.0,0.00171479]
[1645166071693,0.43798489,40646.0,40642.0,0.19616275]
[1645166073890,0.41601249,40646.0,40642.0,0.19616275]
[1645166075740,0.41601249,40646.0,40642.0,0.19586846]
[1645166076741,0.41601249,40646.0,40644.0,0.00171327]
[1645166077343,0.36567643,40645.0,40644.0,0.00171327]
[1645166078688,0.36767643,40645.0,40644.0,0.00171327]
[1645166079887,0.36567643,40645.0,40644.0,0.00171327]
[1645166081290,0.36567643,40646.0,40644.0,0.00171327]
[1645166081690,0.00233289,40645.0,40642.0,0.19381435]
[1645166083952,0.36800932,40645.0,40642.0,0.19381435]
[1645166084151,0.36567643,40644.0,40642.0,0.19381435]
[1645166084353,0.36567643,40644.0,40641.0,0.29779407]
[1645166084553,0.36567643,40644.0,40641.0,0.29801405]
[1645166085555,0.36567643,40644.0,40641.0,0.29779407]
[1645166086295,0.36567643,40646.0,40641.0,0.29779407]
[1645166086497,0.36567643,40645.0,40641.0,0.29779407]
[1645166086797,0.35277534,40645.0,40641.0,0.29801405]
[1645166087196,0.35277534,40645.0,40642.0,0.86705543]
[1645166087896,0.35277534,40645.0,40641.0,0.29779407]
[1645166088096,0.35277534,40645.0,40641.0,0.29801406]
[1645166088297,0.00186631,40645.0,40641.0,0.29801406]
[1645166089100,0.00186631,40645.0,40641.0,0.29779407]
[1645166089300,0.00186631,40645.0,40641.0,0.29801405]
[1645166089501,0.00486631,40645.0,40641.0,0.29801405]
[1645166090343,0.00486631,40645.0,40641.0,0.29779407]
[1645166090542,0.00486631,40645.0,40641.0,0.29801405]
[1645166090746,0.00486631,40645.0,40644.0,0.05]
[1645166090946,0.07379894,40651.0,40646.0,0.01459893]
[1645166090947,0.001,40650.0,40646.0,0.01459893]
[1645166091145,0.001,40650.0,40649.0,0.05]
[1645166091344,0.001,40650.0,40649.0,0.0992]
[1645166091745,0.001,40650.0,40649.0,0.32898534]
[1645166092550,0.00083254,40650.0,40649.0,0.32898534]
[1645166093144,0.07378871,40657.0,40652.0,0.20097869]
[1645166093343,0.07378871,40657.0,40653.0,0.3]
[1645166093595,0.00033038,40661.0,40652.0,0.05]
[1645166093792,0.36592779,40659.0,40653.0,0.0093]
[1645166093996,0.36592779,40658.0,40653.0,0.0093]
[1645166094592,0.07411376,40660.0,40653.0,0.3494524]
[1645166094593,0.36625817,40659.0,40653.0,0.3494524]
[1645166094792,0.36592779,40659.0,40653.0,0.3494524]
[1645166094992,0.36625817,40659.0,40653.0,0.3494524]
[1645166095196,0.36592779,40658.0,40653.0,0.3494524]
[1645166095393,0.36792779,40658.0,40653.0,0.3494524]
[1645166095598,0.36792779,40658.0,40653.0,0.0093]
[1645166096695,0.36592779,40658.0,40655.0,0.00127737]
[1645166096894,0.36692779,40658.0,40655.0,0.00127737]
[1645166098138,0.00033038,40659.0,40655.0,0.00127737]
[1645166098438,0.07378338,40660.0,40655.0,0.00127737]
[1645166098839,0.001,40659.0,40655.0,0.00127737]
[1645166099039,0.00133038,40659.0,40655.0,0.00127737]
[1645166099439,0.01117938,40659.0,40655.0,0.00127737]
[1645166099839,0.00133038,40659.0,40655.0,0.00127737]
[1645166100041,0.00033038,40659.0,40655.0,0.00127737]
[1645166100244,0.07378338,40660.0,40655.0,0.00127737]
[1645166100440,0.00033038,40659.0,40655.0,0.00127737]
[1645166100839,0.00033038,40659.0,40655.0,0.00227737]
[1645166101091,0.07378338,40660.0,40655.0,0.00227737]
[1645166101311,0.00033038,40659.0,40655.0,0.00227737]
[1645166101494,0.07411376,40660.0,40655.0,0.00227737]
[1645166101792,0.07411376,40660.0,40657.0,0.00127556]
[1645166101793,0.07378338,40660.0,40657.0,0.00127556]
[1645166102797,0.07411376,40660.0,40657.0,0.00127556]
[1645166102993,0.07378338,40660.0,40657.0,0.00227556]
[1645166103395,0.08363438,40660.0,40657.0,0.00227556]
[1645166103797,0.08396476,40660.0,40657.0,0.00227556]
[1645166103996,0.08363438,40660.0,40657.0,0.00227556]
[1645166104196,0.08363438,40660.0,40657.0,0.00127556]
[1645166104840,0.07478338,40660.0,40657.0,0.00127556]
[1645166106039,0.07378338,40660.0,40657.0,0.00127556]
[1645166106839,0.07478338,40660.0,40659.0,0.00151733]
[1645166108142,0.07378338,40660.0,40659.0,0.00151733]
[1645166108801,0.07478338,40660.0,40659.0,0.00151733]
[1645166110201,0.07378338,40660.0,40659.0,0.00151733]
[1645166111201,0.08363438,40660.0,40659.0,0.00151733]
[1645166111403,0.07378338,40660.0,40659.0,0.00151733]
[1645166111607,0.07378338,40660.0,40659.0,0.00153686]
[1645166112840,0.07378338,40660.0,40659.0,0.00142306]
[1645166115042,0.08363338,40660.0,40659.0,0.00142306]
[1645166115242,0.07378338,40660.0,40659.0,0.00142306]
[1645166116709,0.07378338,40660.0,40659.0,0.00129244]
[1645166118816,0.07678338,40660.0,40659.0,0.00129244]
[1645166120044,0.07378338,40660.0,40659.0,0.00129244]
[1645166120844,0.07678338,40660.0,40659.0,0.00129244]
[1645166121043,0.07678338,40660.0,40656.0,0.17794569]
[1645166121244,0.07711376,40660.0,40656.0,0.17794569]
[1645166121846,0.07711376,40660.0,40659.0,0.00228745]
[1645166122046,0.07378338,40660.0,40659.0,0.00228745]
[1645166122749,0.08363338,40660.0,40659.0,0.00228745]
[1645166123151,0.07378338,40660.0,40659.0,0.00228745]
[1645166124895,0.07678338,40660.0,40656.0,0.17304729]
[1645166125095,0.07437776,40660.0,40656.0,0.17304729]
[1645166126600,0.08422776,40660.0,40653.0,0.0093]
[1645166126797,0.08322776,40660.0,40659.0,0.00240385]
[1645166126998,0.07304738,40660.0,40659.0,0.00240385]
[1645166128041,0.07104738,40660.0,40659.0,0.00240385]
[1645166130643,0.08089638,40660.0,40659.0,0.00240385]
[1645166130843,0.08389638,40660.0,40659.0,0.00240385]
[1645166131092,0.07404738,40660.0,40659.0,0.00240385]
[1645166131893,0.07404738,40660.0,40659.0,0.00120784]
[1645166132090,0.07104738,40660.0,40659.0,0.00120784]
[1645166134396,0.08089738,40660.0,40659.0,0.00120784]
[1645166134838,0.07404738,40660.0,40659.0,0.00120784]
[1645166136139,0.07104738,40660.0,40659.0,0.00120784]
[1645166136942,0.07404738,40660.0,40654.0,0.22494289]
[1645166137139,0.07437776,40660.0,40654.0,0.22494289]
[1645166138242,0.08122776,40660.0,40654.0,0.22494289]
[1645166138503,0.08122776,40660.0,40655.0,0.3]
[1645166139297,0.01018038,40660.0,40655.0,0.3]
[1645166139502,0.01018038,40660.0,40659.0,0.18781551]
[1645166139696,0.00985,40660.0,40659.0,0.3]
[1645166140299,0.00106941,40661.0,40659.0,0.3]
[1645166140899,0.00306941,40661.0,40659.0,0.3]
[1645166141301,0.00306941,40661.0,40657.0,0.07464]
[1645166141502,0.00306941,40661.0,40655.0,0.117]
[1645166141704,0.00306941,40661.0,40654.0,0.22594289]
[1645166142257,0.00106941,40661.0,40654.0,0.22494289]
[1645166142857,0.00106941,40661.0,40654.0,0.22594289]
[1645166143759,0.36692588,40661.0,40654.0,0.22594289]
[1645166144259,0.36692588,40661.0,40654.0,0.22494289]
[1645166144663,0.00106941,40661.0,40654.0,0.22494289]
[1645166144858,0.36692588,40661.0,40654.0,0.22594289]
[1645166146193,0.37677488,40661.0,40654.0,0.22594289]
[1645166146492,0.36692588,40661.0,40654.0,0.22494289]
[1645166146893,0.36692588,40661.0,40654.0,0.22694289]
[1645166148294,0.00106941,40661.0,40654.0,0.22694289]
[1645166148594,0.00106941,40661.0,40654.0,0.22684647]
[1645166148794,0.00106941,40661.0,40654.0,0.22484647]
[1645166149952,0.01091841,40661.0,40654.0,0.22484647]
[1645166150345,0.00106941,40661.0,40654.0,0.22484647]
[1645166150750,0.00106941,40661.0,40653.0,0.0093]
[1645166150947,0.00106941,40661.0,40654.0,0.002]
[1645166151745,0.25882259,40660.0,40654.0,0.002]
[1645166151946,0.25915297,40660.0,40654.0,0.002]
[1645166152147,0.25915297,40660.0,40653.0,0.0093]
[1645166152950,0.3216752,40660.0,40653.0,0.0093]
[1645166153350,0.3657715,40657.0,40653.0,0.0093]
[1645166155897,0.37560188,40659.0,40653.0,0.0093]
[1645166156298,0.79329475,40659.0,40653.0,0.0093]
[1645166156499,0.79296437,40659.0,40653.0,0.0093]
[1645166156799,0.00069388,40657.0,40655.0,0.00163173]
[1645166156999,0.36646538,40657.0,40655.0,0.00163173]
[1645166158042,0.37631538,40657.0,40655.0,0.00163173]
[1645166158242,0.36646538,40657.0,40655.0,0.00163173]
[1645166159042,0.36946538,40657.0,40655.0,0.00163173]
[1645166161492,0.37931438,40657.0,40655.0,0.00163173]
[1645166161793,0.36946538,40657.0,40654.0,0.00324302]
[1645166162193,0.36646538,40657.0,40654.0,0.00324302]
[1645166162998,0.3657715,40656.0,40654.0,0.00324302]
[1645166165042,0.3677715,40656.0,40654.0,0.00324302]
[1645166165442,0.3776225,40656.0,40654.0,0.00324302]
[1645166166945,0.002,40656.0,40654.0,0.00163043]
[1645166168147,0.36646538,40657.0,40654.0,0.00163043]
[1645166168790,0.37631538,40657.0,40654.0,0.00163043]
[1645166169290,0.36646538,40657.0,40654.0,0.00163043]
[1645166171593,0.46646538,40657.0,40654.0,0.00163043]
[1645166171793,0.46646538,40657.0,40649.0,0.49709725]
[1645166171994,0.36646538,40657.0,40649.0,0.49709725]
[1645166172643,0.37631638,40657.0,40649.0,0.49698145]
[1645166173043,0.36646538,40657.0,40649.0,0.49698145]
[1645166173845,0.00069388,40657.0,40649.0,0.49698145]
[1645166175549,0.36646538,40657.0,40649.0,0.49698145]
[1645166176796,0.37631538,40657.0,40649.0,0.49698145]
[1645166177096,0.36646538,40657.0,40649.0,0.49698145]
[1645166180252,0.00069388,40657.0,40649.0,0.49698145]
[1645166180451,0.01054388,40657.0,40649.0,0.49698145]
[1645166180853,0.01054388,40657.0,40649.0,0.59074145]
[1645166181256,0.01054388,40657.0,40650.0,0.0098]
[1645166181455,0.01054388,40657.0,40651.0,0.0492]
[1645166182054,0.00069388,40657.0,40651.0,0.0492]
[1645166183257,0.00033038,40661.0,40659.0,0.20738516]
[1645166183513,0.38755967,40662.0,40659.0,0.20738516]
[1645166183712,0.00033038,40661.0,40659.0,0.20738516]
[1645166183920,0.38722929,40662.0,40659.0,0.20738516]
[1645166184511,0.39707829,40662.0,40659.0,0.20738516]
[1645166184910,0.38722929,40662.0,40659.0,0.20738516]
[1645166185111,0.38822929,40662.0,40659.0,0.20738516]
[1645166185312,0.38822929,40662.0,40657.0,0.00038776]
[1645166185513,0.31344975,40661.0,40657.0,0.00038776]
[1645166185715,0.00033038,40661.0,40657.0,0.00038776]
[1645166186012,0.38822929,40662.0,40657.0,0.00038776]
[1645166186213,0.00033038,40661.0,40657.0,0.00038776]
[1645166186416,0.38755967,40662.0,40658.0,0.26610579]
[1645166186613,0.38722929,40662.0,40658.0,0.26610579]
[1645166186913,0.00069602,40661.0,40658.0,0.26610579]
[1645166187345,0.31447615,40661.0,40658.0,0.26610579]
[1645166187546,0.0010264,40661.0,40658.0,0.26610579]
[1645166187946,0.31447615,40661.0,40658.0,0.26610579]
[1645166188649,0.0010264,40661.0,40658.0,0.26610579]
[1645166189052,0.0020264,40661.0,40658.0,0.26610579]
[1645166190250,0.0010264,40661.0,40658.0,0.26610579]
[1645166191000,0.0020264,40661.0,40658.0,0.26610579]
[1645166191801,0.0020264,40661.0,40660.0,0.00292264]
[1645166192001,0.00169602,40661.0,40660.0,0.00292264]
[1645166192401,0.00069602,40661.0,40660.0,0.00292264]
[1645166193003,0.00169602,40661.0,40660.0,0.00292264]
[1645166194404,0.31432883,40661.0,40660.0,0.00292264]
[1645166194846,0.00069602,40661.0,40660.0,0.00292264]
[1645166195146,0.00169602,40661.0,40660.0,0.00292264]
[1645166195346,0.31532826,40661.0,40660.0,0.00292264]
[1645166195947,0.00169602,40661.0,40660.0,0.00292264]
[1645166196145,0.31533013,40661.0,40660.0,0.00292264]
[1645166196346,0.31433013,40661.0,40660.0,0.00292264]
[1645166196750,0.31433013,40661.0,40659.0,0.03]
[1645166196946,0.31363205,40660.0,40659.0,0.03]
[1645166198499,0.0010264,40661.0,40659.0,0.03]
[1645166199202,0.001,40660.0,40659.0,0.03]
[1645166200099,0.010849,40660.0,40659.0,0.03]
[1645166200299,0.009849,40660.0,40659.0,0.03]
[1645166200501,0.0010264,40661.0,40659.0,0.03]
[1645166201100,0.0010264,40661.0,40659.0,0.031]
[1645166202346,0.0010264,40661.0,40659.0,0.03]
[1645166203047,0.0010264,40661.0,40659.0,0.031]
[1645166204249,0.0010264,40661.0,40659.0,0.03]
[1645166204453,0.0010264,40661.0,40659.0,0.02988391]
[1645166205050,0.0010264,40661.0,40659.0,0.03088391]
[1645166206297,0.0010264,40661.0,40659.0,0.02988391]
[1645166206496,0.0010264,40661.0,40660.0,0.00041676]
[1645166206696,0.062209,40661.0,40660.0,0.00041676]
[1645166206895,0.062209,40661.0,40660.0,0.00167362]
[1645166207100,0.062209,40661.0,40660.0,0.00267362]
[1645166207898,0.072058,40661.0,40660.0,0.00267362]
[1645166208298,0.062209,40661.0,40660.0,0.00267362]
[1645166208901,0.062209,40661.0,40660.0,0.00167362]
[1645166209100,0.062209,40661.0,40660.0,0.00267362]
[1645166209750,0.00069602,40661.0,40660.0,0.00267362]